[Event "*** Titled Tuesday Blitz"]
[Site "Chess.com"]
[Date "2020.11.03"]
[Round "5"]
[White "BabyFacedAssasin"]
[Black "petrkostenko"]
[Result "1-0"]
[WhiteElo "2262"]
[BlackElo "2448"]
[TimeControl "180+1"]
[EndTime "10:58:19 PST"]
[Termination "BabyFacedAssasin won by resignation"]

1. e4 {[%clk 0:03:00.9]} 1... e6 {[%clk 0:02:07.7]} 2. d4 {[%clk 0:02:55.7]}
2... d5 {[%clk 0:02:07.7]} 3. Nc3 {[%clk 0:02:56.1]} 3... Nf6 {[%clk 0:02:06.6]}
4. e5 {[%clk 0:02:53.5]} 4... Nfd7 {[%clk 0:02:06.1]} 5. f4 {[%clk 0:02:53.7]}
5... c5 {[%clk 0:02:06.7]} 6. Nf3 {[%clk 0:02:53.8]} 6... Nc6 {[%clk 0:02:07.6]}
7. Be3 {[%clk 0:02:53.4]} 7... a6 {[%clk 0:02:08.3]} 8. Qd2 {[%clk 0:02:47.9]}
8... b5 {[%clk 0:02:08.7]} 9. Be2 {[%clk 0:02:44]} 9... Qb6 {[%clk 0:02:06.8]}
10. O-O {[%clk 0:02:41]} 10... Bb7 {[%clk 0:02:06.9]} 11. Nd1 {[%clk 0:02:38.8]}
11... b4 {[%clk 0:02:06.3]} 12. c3 {[%clk 0:02:26.4]} 12... Rc8 {[%clk
0:02:03.3]} 13. Bf2 {[%clk 0:02:25.1]} 13... Be7 {[%clk 0:02:01.6]} 14. Ne3
{[%clk 0:02:23.7]} 14... bxc3 {[%clk 0:02:00.1]} 15. bxc3 {[%clk 0:02:23]} 15...
f5 {[%clk 0:01:55.7]} 16. exf6 {[%clk 0:02:13]} 16... Nxf6 {[%clk 0:01:54.9]}
17. f5 {[%clk 0:02:10.3]} 17... Ne4 {[%clk 0:01:53]} 18. Qd3 {[%clk 0:01:55.4]}
18... cxd4 {[%clk 0:01:43.5]} 19. Nxd4 {[%clk 0:01:52.1]} 19... Nxd4 {[%clk
0:01:10.8]} 20. cxd4 {[%clk 0:01:49.2]} 20... Rc3 {[%clk 0:01:08.8]} 21. Rab1
{[%clk 0:01:38.6]} 21... Qc7 {[%clk 0:01:05.5]} 22. Qd1 {[%clk 0:01:15.3]} 22...
Nxf2 {[%clk 0:01:05.2]} 23. Rxf2 {[%clk 0:01:11.3]} 23... Rxe3 {[%clk 0:01:05]}
24. Bh5+ {[%clk 0:01:05.2]} 24... Kd8 {[%clk 0:00:53.7]} 25. fxe6 {[%clk
0:01:01.7]} 25... Bf6 {[%clk 0:00:53.6]} 26. Rc2 {[%clk 0:00:53.2]} 26... Qe7
{[%clk 0:00:46.3]} 27. Rcb2 {[%clk 0:00:46.9]} 27... Bc8 {[%clk 0:00:45.9]} 28.
Qd2 {[%clk 0:00:41.6]} 28... Re4 {[%clk 0:00:45]} 29. Qa5+ {[%clk 0:00:34.3]}
29... Qc7 {[%clk 0:00:45]} 30. Qxd5+ {[%clk 0:00:34.2]} 30... Ke7 {[%clk
0:00:45.6]} 31. Qxe4 {[%clk 0:00:30.7]} 31... Rd8 {[%clk 0:00:45]} 32. Rb7
{[%clk 0:00:29.3]} 32... Bxd4+ {[%clk 0:00:41.8]} 33. Kf1 {[%clk 0:00:27]} 33...
Bxb7 {[%clk 0:00:41.4]} 34. Rxb7 {[%clk 0:00:26.3]} 34... Qxb7 {[%clk
0:00:41.9]} 35. Qxb7+ {[%clk 0:00:26]} 35... Kxe6 {[%clk 0:00:42.8]} 36. Qe4+
{[%clk 0:00:26.2]} 36... Be5 {[%clk 0:00:42.5]} 37. Bg4+ {[%clk 0:00:25.9]}
37... Kd6 {[%clk 0:00:40.3]} 38. Qb4+ {[%clk 0:00:24]} 38... Kc6 {[%clk
0:00:33.3]} 39. Qc4+ {[%clk 0:00:18.9]} 39... Kd6 {[%clk 0:00:32.6]} 40. Qe6+
{[%clk 0:00:18.9]} 1-0

[Event "*** Titled Tuesday Blitz"]
[Site "Chess.com"]
[Date "2020.11.03"]
[Round "5"]
[White "salomez"]
[Black "esrosenberg"]
[Result "0-1"]
[WhiteElo "2136"]
[BlackElo "2331"]
[TimeControl "180+1"]
[EndTime "10:58:21 PST"]
[Termination "esrosenberg won by resignation"]

1. e4 {[%clk 0:03:00.5]} 1... c6 {[%clk 0:03:00.2]} 2. d4 {[%clk 0:02:45.8]}
2... d5 {[%clk 0:03:00.4]} 3. e5 {[%clk 0:02:45.1]} 3... c5 {[%clk 0:03:00.7]}
4. dxc5 {[%clk 0:02:42.4]} 4... e6 {[%clk 0:03:00.8]} 5. a3 {[%clk 0:02:42.6]}
5... Bxc5 {[%clk 0:03:00]} 6. Qg4 {[%clk 0:02:41.2]} 6... Ne7 {[%clk 0:02:57.5]}
7. Qxg7 {[%clk 0:02:36.5]} 7... Rg8 {[%clk 0:02:57.9]} 8. Qxh7 {[%clk
0:02:30.3]} 8... Nbc6 {[%clk 0:02:58.4]} 9. Nf3 {[%clk 0:02:29.1]} 9... Qb6
{[%clk 0:02:56.2]} 10. Nc3 {[%clk 0:02:12.1]} 10... Bxf2+ {[%clk 0:02:54.2]} 11.
Kd1 {[%clk 0:02:11.8]} 11... Bd7 {[%clk 0:02:18.9]} 12. Bd2 {[%clk 0:01:51.5]}
12... a6 {[%clk 0:01:55.2]} 13. Kc1 {[%clk 0:01:49.9]} 13... Be3 {[%clk
0:01:45.7]} 14. Qd3 {[%clk 0:01:38]} 14... Bxd2+ {[%clk 0:01:45.6]} 15. Qxd2
{[%clk 0:01:37.8]} 15... Nf5 {[%clk 0:01:39.6]} 16. Bd3 {[%clk 0:01:31.4]} 16...
Nfd4 {[%clk 0:01:27.7]} 17. Rf1 {[%clk 0:01:27.9]} 17... Nxf3 {[%clk 0:01:24]}
18. Rxf3 {[%clk 0:01:23.4]} 18... Qg1+ {[%clk 0:01:21.6]} 19. Rf1 {[%clk
0:01:11.2]} 19... Qxg2 {[%clk 0:01:19.1]} 20. Qf4 {[%clk 0:00:53.3]} 20... Qg5
{[%clk 0:01:13.8]} 21. Qxg5 {[%clk 0:00:17.5]} 21... Rxg5 {[%clk 0:01:13.1]} 22.
h4 {[%clk 0:00:13.8]} 22... Rxe5 {[%clk 0:01:12.9]} 23. Rh1 {[%clk 0:00:13.1]}
23... Rh5 {[%clk 0:01:07.7]} 24. Ne2 {[%clk 0:00:11.8]} 24... Ke7 {[%clk
0:01:00.2]} 25. Nf4 {[%clk 0:00:11.3]} 25... Rh6 {[%clk 0:01:00.4]} 26. h5
{[%clk 0:00:10.9]} 26... Rg8 {[%clk 0:00:57.4]} 27. Kd2 {[%clk 0:00:09.3]} 27...
Ne5 {[%clk 0:00:52.8]} 28. Rae1 {[%clk 0:00:05.6]} 28... Nf3+ {[%clk 0:00:53.1]}
29. Kc3 {[%clk 0:00:02.1]} 29... Nxe1 {[%clk 0:00:53.4]} 30. Rxe1 {[%clk
0:00:03]} 30... Kd6 {[%clk 0:00:49.5]} 31. Rh1 {[%clk 0:00:02.6]} 31... Rg4
{[%clk 0:00:48.5]} 32. Ne2 {[%clk 0:00:02.2]} 32... e5 {[%clk 0:00:46.4]} 33.
Kd2 {[%clk 0:00:01.9]} 33... e4 {[%clk 0:00:43.4]} 0-1

[Event "*** Titled Tuesday Blitz"]
[Site "Chess.com"]
[Date "2020.11.03"]
[Round "5"]
[White "SARGISMV"]
[Black "AsaHoffmann"]
[Result "1-0"]
[WhiteElo "2480"]
[BlackElo "2304"]
[TimeControl "180+1"]
[EndTime "10:58:22 PST"]
[Termination "SARGISMV won by resignation"]

1. Nf3 {[%clk 0:03:00.9]} 1... d6 {[%clk 0:02:59]} 2. b3 {[%clk 0:03:01.1]} 2...
e5 {[%clk 0:02:58.4]} 3. Bb2 {[%clk 0:03:02]} 3... Nf6 {[%clk 0:02:57.7]} 4. d3
{[%clk 0:03:00.2]} 4... Be7 {[%clk 0:02:57.3]} 5. Nbd2 {[%clk 0:03:00.9]} 5...
O-O {[%clk 0:02:56.6]} 6. e4 {[%clk 0:03:01.8]} 6... c6 {[%clk 0:02:53.1]} 7. g3
{[%clk 0:03:02.7]} 7... Be6 {[%clk 0:02:48.6]} 8. Bg2 {[%clk 0:03:01.8]} 8... h6
{[%clk 0:02:48.4]} 9. O-O {[%clk 0:03:01.9]} 9... Qd7 {[%clk 0:02:48.2]} 10. Re1
{[%clk 0:02:56.6]} 10... Bg4 {[%clk 0:02:45.7]} 11. Qe2 {[%clk 0:02:54.1]} 11...
Na6 {[%clk 0:02:44.2]} 12. Qf1 {[%clk 0:02:54.1]} 12... Rfe8 {[%clk 0:02:37.2]}
13. h3 {[%clk 0:02:53.7]} 13... Be6 {[%clk 0:02:36.4]} 14. Kh2 {[%clk
0:02:53.3]} 14... Bf8 {[%clk 0:02:35.7]} 15. Nh4 {[%clk 0:02:53.1]} 15... Nh7
{[%clk 0:02:32.8]} 16. f4 {[%clk 0:02:52.4]} 16... exf4 {[%clk 0:02:27.6]} 17.
gxf4 {[%clk 0:02:53.3]} 17... f5 {[%clk 0:02:24.8]} 18. Qf2 {[%clk 0:02:21.8]}
18... Nc7 {[%clk 0:02:12.9]} 19. Qg3 {[%clk 0:02:17.6]} 19... Qf7 {[%clk
0:02:04]} 20. Rg1 {[%clk 0:02:12.6]} 20... g5 {[%clk 0:02:01]} 21. Nxf5 {[%clk
0:02:08.3]} 21... Bxf5 {[%clk 0:01:57.7]} 22. exf5 {[%clk 0:02:09.2]} 22... Qxf5
{[%clk 0:01:55.6]} 23. Be4 {[%clk 0:02:06.9]} 23... Rxe4 {[%clk 0:01:49]} 24.
dxe4 {[%clk 0:01:56.7]} 24... Qf7 {[%clk 0:01:45]} 25. fxg5 {[%clk 0:01:50.7]}
25... hxg5 {[%clk 0:01:43.7]} 26. Raf1 {[%clk 0:01:50.1]} 26... Qg6 {[%clk
0:01:42.7]} 27. Nf3 {[%clk 0:01:46.4]} 27... Be7 {[%clk 0:01:40.7]} 28. Qg4
{[%clk 0:01:36.8]} 28... Ne6 {[%clk 0:01:34.1]} 29. Nd4 {[%clk 0:01:32.2]} 29...
Nxd4 {[%clk 0:01:30.6]} 30. Bxd4 {[%clk 0:01:33.1]} 30... Rf8 {[%clk 0:01:30]}
31. Rxf8+ {[%clk 0:01:31.9]} 31... Nxf8 {[%clk 0:01:27.4]} 32. h4 {[%clk
0:01:18.1]} 32... Ne6 {[%clk 0:01:26.2]} 33. Be3 {[%clk 0:01:17.9]} 33... Kg7
{[%clk 0:01:17.5]} 34. Bxg5 {[%clk 0:01:11]} 34... Bxg5 {[%clk 0:01:13.9]} 35.
hxg5 {[%clk 0:01:10.9]} 35... Nd4 {[%clk 0:01:03.7]} 36. Rf1 {[%clk 0:01:04.5]}
36... Qe6 {[%clk 0:00:58.6]} 37. Qxe6 {[%clk 0:00:56.4]} 37... Nxe6 {[%clk
0:00:55.9]} 38. Rf6 {[%clk 0:00:57.3]} 38... Nxg5 {[%clk 0:00:52.5]} 39. Rxd6
{[%clk 0:00:57.1]} 39... Nxe4 {[%clk 0:00:52.5]} 40. Rd7+ {[%clk 0:00:57.3]}
40... Kf6 {[%clk 0:00:52.5]} 41. Rxb7 {[%clk 0:00:58.2]} 41... a5 {[%clk
0:00:48.3]} 42. Ra7 {[%clk 0:00:53.4]} 42... Ke5 {[%clk 0:00:44.1]} 43. Rxa5+
{[%clk 0:00:53.2]} 43... Kd4 {[%clk 0:00:44]} 44. Ra4+ {[%clk 0:00:52.3]} 44...
Kd5 {[%clk 0:00:43.6]} 45. Rxe4 {[%clk 0:00:52]} 45... Kxe4 {[%clk 0:00:41]} 46.
a4 {[%clk 0:00:52.9]} 46... Kd4 {[%clk 0:00:40.3]} 47. Kg3 {[%clk 0:00:46.9]}
47... c5 {[%clk 0:00:40.4]} 48. Kf2 {[%clk 0:00:46.5]} 48... Kc3 {[%clk
0:00:40.4]} 49. a5 {[%clk 0:00:46.1]} 49... Kxc2 {[%clk 0:00:40.4]} 50. a6
{[%clk 0:00:46.5]} 50... Kxb3 {[%clk 0:00:40.4]} 51. a7 {[%clk 0:00:47]} 51...
c4 {[%clk 0:00:40.7]} 52. a8=Q {[%clk 0:00:47.5]} 52... c3 {[%clk 0:00:40.9]}
53. Qa1 {[%clk 0:00:45.8]} 53... Kc2 {[%clk 0:00:40.2]} 54. Ke2 {[%clk
0:00:43.4]} 1-0

[Event "*** Titled Tuesday Blitz"]
[Site "Chess.com"]
[Date "2020.11.03"]
[Round "5"]
[White "lider34"]
[Black "AliKa2810"]
[Result "1-0"]
[WhiteElo "2406"]
[BlackElo "2553"]
[TimeControl "180+1"]
[EndTime "10:58:24 PST"]
[Termination "lider34 won by resignation"]

1. e4 {[%clk 0:03:00.9]} 1... c6 {[%clk 0:02:50.2]} 2. d4 {[%clk 0:02:59.3]}
2... d5 {[%clk 0:02:50.8]} 3. exd5 {[%clk 0:02:59]} 3... cxd5 {[%clk 0:02:50.7]}
4. c4 {[%clk 0:02:58.9]} 4... Nf6 {[%clk 0:02:50]} 5. Nc3 {[%clk 0:02:58.7]}
5... e6 {[%clk 0:02:49.9]} 6. Nf3 {[%clk 0:02:58.2]} 6... Bb4 {[%clk 0:02:47.8]}
7. cxd5 {[%clk 0:02:57.8]} 7... Nxd5 {[%clk 0:02:46.4]} 8. Qc2 {[%clk
0:02:57.6]} 8... Nc6 {[%clk 0:02:42.9]} 9. Bd3 {[%clk 0:02:57.2]} 9... h6 {[%clk
0:02:41.4]} 10. O-O {[%clk 0:02:55.1]} 10... O-O {[%clk 0:02:41.6]} 11. a3
{[%clk 0:02:49.4]} 11... Be7 {[%clk 0:02:39.8]} 12. Rd1 {[%clk 0:02:42.5]} 12...
Bf6 {[%clk 0:02:23.5]} 13. Be4 {[%clk 0:02:24.5]} 13... Nce7 {[%clk 0:02:19]}
14. Ne5 {[%clk 0:02:18.7]} 14... Bd7 {[%clk 0:02:12.6]} 15. Qe2 {[%clk
0:02:10.4]} 15... Rc8 {[%clk 0:02:05.8]} 16. Bd2 {[%clk 0:02:08.5]} 16... Bc6
{[%clk 0:02:01.3]} 17. Bd3 {[%clk 0:01:43.8]} 17... Nxc3 {[%clk 0:01:48.1]} 18.
bxc3 {[%clk 0:01:42]} 18... Ba4 {[%clk 0:01:37.6]} 19. Rdb1 {[%clk 0:01:30]}
19... Qc7 {[%clk 0:01:23.8]} 20. Qe4 {[%clk 0:01:28.2]} 20... g6 {[%clk
0:01:23.3]} 21. Rxb7 {[%clk 0:01:11]} 21... Qd6 {[%clk 0:01:09.7]} 22. Bxh6
{[%clk 0:01:07.7]} 22... Rfd8 {[%clk 0:01:06.3]} 23. Rxa7 {[%clk 0:00:56.1]}
23... Bxe5 {[%clk 0:00:46.3]} 24. Rxa4 {[%clk 0:00:45.6]} 24... Bxh2+ {[%clk
0:00:34.4]} 25. Kh1 {[%clk 0:00:45]} 25... Rxc3 {[%clk 0:00:34.5]} 26. Bg5
{[%clk 0:00:35.5]} 26... Rdc8 {[%clk 0:00:18.8]} 27. Bxe7 {[%clk 0:00:34.1]}
27... Rc1+ {[%clk 0:00:17.8]} 28. Bf1 {[%clk 0:00:27.6]} 28... Qd7 {[%clk
0:00:16.1]} 29. Rxc1 {[%clk 0:00:21.5]} 29... Rxc1 {[%clk 0:00:17]} 30. Ra8+
{[%clk 0:00:18.7]} 30... Kg7 {[%clk 0:00:17.6]} 31. Bf8+ {[%clk 0:00:18.3]}
31... Kh7 {[%clk 0:00:16.2]} 32. Qh4+ {[%clk 0:00:16.3]} 1-0

[Event "*** Titled Tuesday Blitz"]
[Site "Chess.com"]
[Date "2020.11.03"]
[Round "5"]
[White "ChristianAlm"]
[Black "Godzillator"]
[Result "0-1"]
[WhiteElo "2522"]
[BlackElo "2317"]
[TimeControl "180+1"]
[EndTime "10:58:24 PST"]
[Termination "Godzillator won by resignation"]

1. d4 {[%clk 0:02:56.8]} 1... d5 {[%clk 0:02:59.7]} 2. Bf4 {[%clk 0:02:30.1]}
2... c5 {[%clk 0:02:59.1]} 3. e3 {[%clk 0:02:30.6]} 3... cxd4 {[%clk 0:02:59.1]}
4. exd4 {[%clk 0:02:31.5]} 4... Nc6 {[%clk 0:02:59.5]} 5. Nf3 {[%clk 0:02:31.9]}
5... Nf6 {[%clk 0:02:59.5]} 6. Nc3 {[%clk 0:02:28.7]} 6... Bg4 {[%clk
0:02:57.2]} 7. Nb5 {[%clk 0:02:22.3]} 7... Rc8 {[%clk 0:02:53.7]} 8. Be2 {[%clk
0:02:12.2]} 8... e6 {[%clk 0:02:50.8]} 9. O-O {[%clk 0:02:11.3]} 9... a6 {[%clk
0:02:48]} 10. Nc3 {[%clk 0:02:10]} 10... Bb4 {[%clk 0:02:46.7]} 11. Nb1 {[%clk
0:02:03.8]} 11... O-O {[%clk 0:02:45.5]} 12. c3 {[%clk 0:02:03.3]} 12... Bd6
{[%clk 0:02:45.4]} 13. Bg5 {[%clk 0:02:01.4]} 13... b5 {[%clk 0:02:44]} 14. Nbd2
{[%clk 0:01:59.7]} 14... Na5 {[%clk 0:02:37.9]} 15. Re1 {[%clk 0:01:54.2]} 15...
Nc4 {[%clk 0:02:35.8]} 16. Nxc4 {[%clk 0:01:51.6]} 16... bxc4 {[%clk 0:02:35.3]}
17. Ne5 {[%clk 0:01:51.8]} 17... Bf5 {[%clk 0:02:30]} 18. f4 {[%clk 0:01:47.5]}
18... Be7 {[%clk 0:02:07.6]} 19. Bf3 {[%clk 0:01:42.3]} 19... Ne4 {[%clk
0:02:04.4]} 20. Bxe7 {[%clk 0:01:35]} 20... Qxe7 {[%clk 0:02:04.2]} 21. g4
{[%clk 0:01:35.5]} 21... Bg6 {[%clk 0:02:01.8]} 22. Nxg6 {[%clk 0:01:34.7]}
22... hxg6 {[%clk 0:01:51.5]} 23. Bxe4 {[%clk 0:01:34.2]} 23... dxe4 {[%clk
0:01:49.3]} 24. Rxe4 {[%clk 0:01:35.1]} 24... Qb7 {[%clk 0:01:48.8]} 25. Qe2
{[%clk 0:01:28.5]} 25... Rb8 {[%clk 0:01:45.7]} 26. Rb1 {[%clk 0:01:28.7]} 26...
Qc6 {[%clk 0:01:44.4]} 27. Qg2 {[%clk 0:01:17.9]} 27... Rb5 {[%clk 0:01:38.5]}
28. Re5 {[%clk 0:01:14.3]} 28... Qb6 {[%clk 0:01:28.3]} 29. Rxb5 {[%clk
0:01:11.4]} 29... Qxb5 {[%clk 0:01:28.5]} 30. a3 {[%clk 0:01:10.3]} 30... Rb8
{[%clk 0:01:27.1]} 31. Qe4 {[%clk 0:01:06]} 31... a5 {[%clk 0:01:17.3]} 32. Qe5
{[%clk 0:01:01.2]} 32... Qb6 {[%clk 0:01:17.2]} 33. h4 {[%clk 0:00:50.7]} 33...
a4 {[%clk 0:01:15.2]} 34. h5 {[%clk 0:00:45]} 34... gxh5 {[%clk 0:01:14.8]} 35.
gxh5 {[%clk 0:00:45.9]} 35... Rd8 {[%clk 0:01:13.9]} 36. h6 {[%clk 0:00:42]}
36... gxh6 {[%clk 0:01:09.5]} 37. Kh2 {[%clk 0:00:41.9]} 37... Rd5 {[%clk
0:01:05.7]} 38. Rg1+ {[%clk 0:00:40.4]} 38... Kf8 {[%clk 0:01:06]} 39. Qh8+
{[%clk 0:00:30.9]} 39... Ke7 {[%clk 0:01:06.1]} 40. Qxh6 {[%clk 0:00:17.6]}
40... Qxb2+ {[%clk 0:01:04.8]} 41. Rg2 {[%clk 0:00:17.5]} 41... Qb5 {[%clk
0:00:59.2]} 42. Qh4+ {[%clk 0:00:17.2]} 42... Kd7 {[%clk 0:00:57.8]} 43. Qf6
{[%clk 0:00:12.5]} 43... Rf5 {[%clk 0:00:55.9]} 44. Qh8 {[%clk 0:00:11.6]} 44...
Rh5+ {[%clk 0:00:55.5]} 0-1

[Event "*** Titled Tuesday Blitz"]
[Site "Chess.com"]
[Date "2020.11.03"]
[Round "5"]
[White "chessdjw"]
[Black "TheCavemanChesss"]
[Result "0-1"]
[WhiteElo "2658"]
[BlackElo "2469"]
[TimeControl "180+1"]
[EndTime "10:58:25 PST"]
[Termination "TheCavemanChesss won by resignation"]

1. d4 {[%clk 0:03:00.9]} 1... Nf6 {[%clk 0:03:00]} 2. c4 {[%clk 0:03:01.1]} 2...
e6 {[%clk 0:03:00.3]} 3. Nf3 {[%clk 0:03:01.7]} 3... d5 {[%clk 0:03:00.7]} 4. g3
{[%clk 0:03:01.3]} 4... Be7 {[%clk 0:03:00.6]} 5. Bg2 {[%clk 0:03:01.2]} 5...
O-O {[%clk 0:03:00.9]} 6. O-O {[%clk 0:03:01.3]} 6... dxc4 {[%clk 0:03:01.5]} 7.
Qa4 {[%clk 0:02:57.2]} 7... a6 {[%clk 0:02:58.8]} 8. Qxc4 {[%clk 0:02:56.9]}
8... b5 {[%clk 0:02:58.9]} 9. Qc2 {[%clk 0:02:57.5]} 9... Bb7 {[%clk 0:02:59.3]}
10. Bd2 {[%clk 0:02:57.1]} 10... Be4 {[%clk 0:02:57.7]} 11. Qc1 {[%clk
0:02:57.1]} 11... Nbd7 {[%clk 0:02:57.8]} 12. Ba5 {[%clk 0:02:54.7]} 12... Rc8
{[%clk 0:02:57]} 13. Nc3 {[%clk 0:02:50.7]} 13... Ba8 {[%clk 0:02:54.9]} 14. Rd1
{[%clk 0:02:46.6]} 14... Qe8 {[%clk 0:02:55.2]} 15. b4 {[%clk 0:02:42.5]} 15...
Nb6 {[%clk 0:02:55.3]} 16. Nd2 {[%clk 0:02:36.5]} 16... Bxg2 {[%clk 0:02:52.9]}
17. Kxg2 {[%clk 0:02:37.4]} 17... Nfd5 {[%clk 0:02:40]} 18. Rb1 {[%clk 0:02:08]}
18... f5 {[%clk 0:02:26.6]} 19. e3 {[%clk 0:02:06]} 19... h5 {[%clk 0:02:18.7]}
20. h4 {[%clk 0:01:57.3]} 20... Qg6 {[%clk 0:02:00.7]} 21. Nf3 {[%clk
0:01:52.9]} 21... Nc4 {[%clk 0:01:50.3]} 22. Ne5 {[%clk 0:01:37.3]} 22... Nxe5
{[%clk 0:01:48.7]} 23. Nxd5 {[%clk 0:01:30.7]} 23... exd5 {[%clk 0:01:42.9]} 24.
dxe5 {[%clk 0:01:30.9]} 24... c6 {[%clk 0:01:40.7]} 25. Bb6 {[%clk 0:01:28.4]}
25... Bxh4 {[%clk 0:01:37.6]} 26. Rh1 {[%clk 0:01:19.2]} 26... Be7 {[%clk
0:01:28.7]} 27. Kf1 {[%clk 0:01:17.1]} 27... h4 {[%clk 0:01:23.3]} 28. gxh4
{[%clk 0:01:14.5]} 28... f4 {[%clk 0:01:23.6]} 29. exf4 {[%clk 0:01:11.5]} 29...
Qe4 {[%clk 0:01:03.2]} 30. Rh3 {[%clk 0:00:56.3]} 30... Rxf4 {[%clk 0:01:01.3]}
31. h5 {[%clk 0:00:55]} 31... Rg4 {[%clk 0:00:40.5]} 32. Rbb3 {[%clk 0:00:32.3]}
32... Qg2+ {[%clk 0:00:27.5]} 33. Ke2 {[%clk 0:00:31.7]} 33... Re4+ {[%clk
0:00:27.8]} 34. Rbe3 {[%clk 0:00:22.2]} 34... Qxh3 {[%clk 0:00:26.9]} 35. Rxe4
{[%clk 0:00:14.7]} 35... dxe4 {[%clk 0:00:27.8]} 0-1

[Event "*** Titled Tuesday Blitz"]
[Site "Chess.com"]
[Date "2020.11.03"]
[Round "5"]
[White "Kobalia"]
[Black "PSvidler"]
[Result "0-1"]
[WhiteElo "2731"]
[BlackElo "2902"]
[TimeControl "180+1"]
[EndTime "10:58:28 PST"]
[Termination "PSvidler won on time"]

1. e4 {[%clk 0:03:00.9]} 1... c5 {[%clk 0:02:51.7]} 2. Nf3 {[%clk 0:03:00.1]}
2... d6 {[%clk 0:02:51.7]} 3. Bb5+ {[%clk 0:02:59.3]} 3... Nd7 {[%clk
0:02:50.9]} 4. O-O {[%clk 0:02:58.5]} 4... a6 {[%clk 0:02:50.7]} 5. Bd3 {[%clk
0:02:58.6]} 5... Ngf6 {[%clk 0:02:48.8]} 6. c3 {[%clk 0:02:58.8]} 6... b5 {[%clk
0:02:48.4]} 7. Bc2 {[%clk 0:02:59.2]} 7... Bb7 {[%clk 0:02:44.3]} 8. Qe2 {[%clk
0:02:59.3]} 8... g6 {[%clk 0:02:40.4]} 9. d4 {[%clk 0:02:58.9]} 9... Bg7 {[%clk
0:02:40.7]} 10. Rd1 {[%clk 0:02:57.3]} 10... Qc7 {[%clk 0:02:34.5]} 11. a4
{[%clk 0:02:56.5]} 11... O-O {[%clk 0:02:33.7]} 12. Na3 {[%clk 0:02:52.3]} 12...
b4 {[%clk 0:02:12]} 13. Nb1 {[%clk 0:02:12.6]} 13... cxd4 {[%clk 0:02:08.9]} 14.
cxd4 {[%clk 0:02:06.7]} 14... Rac8 {[%clk 0:02:06.1]} 15. Ne1 {[%clk 0:01:31.2]}
15... e5 {[%clk 0:01:37.9]} 16. d5 {[%clk 0:01:27.9]} 16... Nc5 {[%clk
0:01:37.8]} 17. Nd2 {[%clk 0:01:26]} 17... a5 {[%clk 0:01:37.9]} 18. Nb3 {[%clk
0:01:19.5]} 18... Ba6 {[%clk 0:01:36.8]} 19. Qe3 {[%clk 0:01:19.6]} 19... Ng4
{[%clk 0:01:22.5]} 20. Qh3 {[%clk 0:01:10.2]} 20... Nxb3 {[%clk 0:01:15.5]} 21.
Bxb3 {[%clk 0:01:03.4]} 21... h5 {[%clk 0:01:12.8]} 22. Be3 {[%clk 0:00:58.4]}
22... Nxe3 {[%clk 0:01:02.5]} 23. Qxe3 {[%clk 0:00:57.5]} 23... Qc5 {[%clk
0:01:03.1]} 24. Qxc5 {[%clk 0:00:39]} 24... Rxc5 {[%clk 0:01:02.9]} 25. Rac1
{[%clk 0:00:39.4]} 25... Rfc8 {[%clk 0:01:02.6]} 26. Rxc5 {[%clk 0:00:39.7]}
26... Rxc5 {[%clk 0:01:02.5]} 27. h4 {[%clk 0:00:36.8]} 27... Bh6 {[%clk
0:01:01.9]} 28. Nd3 {[%clk 0:00:34.8]} 28... Rc7 {[%clk 0:01:01.5]} 29. g3
{[%clk 0:00:34]} 29... Kg7 {[%clk 0:01:01.4]} 30. Kg2 {[%clk 0:00:33.9]} 30...
f5 {[%clk 0:01:01.3]} 31. f3 {[%clk 0:00:32]} 31... Be3 {[%clk 0:00:59.9]} 32.
exf5 {[%clk 0:00:10.7]} 32... gxf5 {[%clk 0:00:59.9]} 33. g4 {[%clk 0:00:11]}
33... hxg4 {[%clk 0:00:51.1]} 34. fxg4 {[%clk 0:00:11]} 34... e4 {[%clk
0:00:50.4]} 35. Nf2 {[%clk 0:00:08.7]} 35... Be2 {[%clk 0:00:49.1]} 36. Re1
{[%clk 0:00:06.1]} 36... Bf3+ {[%clk 0:00:49.2]} 37. Kf1 {[%clk 0:00:05.4]}
37... f4 {[%clk 0:00:49.2]} 38. g5 {[%clk 0:00:04.2]} 38... Kg6 {[%clk
0:00:42.7]} 0-1

[Event "*** Titled Tuesday Blitz"]
[Site "Chess.com"]
[Date "2020.11.03"]
[Round "5"]
[White "Anna_ChessMate"]
[Black "talyamania"]
[Result "1-0"]
[WhiteElo "2534"]
[BlackElo "2370"]
[TimeControl "180+1"]
[EndTime "10:58:28 PST"]
[Termination "Anna_ChessMate won by resignation"]

1. d4 {[%clk 0:03:00.9]} 1... Nf6 {[%clk 0:02:58.8]} 2. c4 {[%clk 0:03:00.5]}
2... c5 {[%clk 0:02:57.6]} 3. e3 {[%clk 0:02:58.8]} 3... g6 {[%clk 0:02:56.7]}
4. Nf3 {[%clk 0:02:58.7]} 4... Bg7 {[%clk 0:02:56.3]} 5. Nc3 {[%clk 0:02:58.8]}
5... O-O {[%clk 0:02:56.2]} 6. Be2 {[%clk 0:02:57.9]} 6... cxd4 {[%clk
0:02:56.2]} 7. exd4 {[%clk 0:02:57.6]} 7... d5 {[%clk 0:02:56.3]} 8. O-O {[%clk
0:02:57.3]} 8... Nc6 {[%clk 0:02:55.5]} 9. h3 {[%clk 0:02:55.8]} 9... Bf5 {[%clk
0:02:54.3]} 10. cxd5 {[%clk 0:02:47.7]} 10... Nxd5 {[%clk 0:02:53.4]} 11. Bc4
{[%clk 0:02:48.2]} 11... Nb6 {[%clk 0:02:47]} 12. Bd3 {[%clk 0:02:27.4]} 12...
Bxd3 {[%clk 0:02:39.2]} 13. Qxd3 {[%clk 0:02:28.3]} 13... Nxd4 {[%clk
0:02:37.6]} 14. Nxd4 {[%clk 0:02:17.9]} 14... Qxd4 {[%clk 0:02:37]} 15. Qf3
{[%clk 0:02:18.1]} 15... Qd7 {[%clk 0:02:13]} 16. Rd1 {[%clk 0:02:16.1]} 16...
Qc6 {[%clk 0:02:12.7]} 17. Qxc6 {[%clk 0:02:13.4]} 17... bxc6 {[%clk 0:02:12.2]}
18. Ne4 {[%clk 0:02:13.9]} 18... Rfd8 {[%clk 0:02:09.4]} 19. Re1 {[%clk
0:02:12.7]} 19... Rd5 {[%clk 0:02:01.7]} 20. Rb1 {[%clk 0:02:12]} 20... Rad8
{[%clk 0:01:59.4]} 21. b3 {[%clk 0:02:10.1]} 21... Rd1 {[%clk 0:01:53.9]} 22.
Ba3 {[%clk 0:02:08.5]} 22... Rxb1 {[%clk 0:01:51.4]} 23. Rxb1 {[%clk 0:02:02.6]}
23... e6 {[%clk 0:01:45]} 24. Rc1 {[%clk 0:01:59.3]} 24... Rd4 {[%clk
0:01:35.3]} 25. f3 {[%clk 0:01:35.5]} 25... f5 {[%clk 0:01:19.6]} 26. Nc5 {[%clk
0:01:25.7]} 26... Bh6 {[%clk 0:01:05.8]} 27. Re1 {[%clk 0:01:20.6]} 27... Rd2
{[%clk 0:01:00.5]} 28. Bc1 {[%clk 0:01:12]} 28... Be3+ {[%clk 0:00:44.1]} 29.
Kh1 {[%clk 0:01:01.7]} 29... Bxc5 {[%clk 0:00:38.6]} 30. Bxd2 {[%clk 0:01:01.7]}
30... Kf7 {[%clk 0:00:37.7]} 31. Rc1 {[%clk 0:01:00.7]} 31... Bf2 {[%clk
0:00:32.1]} 32. Rxc6 {[%clk 0:01:00]} 32... Nd5 {[%clk 0:00:32]} 33. b4 {[%clk
0:00:57.9]} 33... h5 {[%clk 0:00:29.7]} 34. a4 {[%clk 0:00:57.9]} 34... Ke7
{[%clk 0:00:29.5]} 35. b5 {[%clk 0:00:51.3]} 35... Kd7 {[%clk 0:00:29.1]} 36.
Rc2 {[%clk 0:00:49.8]} 36... h4 {[%clk 0:00:23.2]} 37. a5 {[%clk 0:00:47.2]}
37... Nc7 {[%clk 0:00:19.3]} 38. Bf4 {[%clk 0:00:42.8]} 38... e5 {[%clk
0:00:13.4]} 1-0